[Event "Live Chess"]
[Site "Chess.com"]
[Date "2023.05.20"]
[Round "-"]
[White "booktrunk"]
[Black "Pablo_dmp"]
[Result "0-1"]
[WhiteElo "1359"]
[BlackElo "1871"]
[TimeControl "300"]
[EndTime "10:18:53 PDT"]
[Termination "Pablo_dmp won by checkmate"]

1. d4 {[%clk 0:04:56.2]} 1... Nf6 {[%clk 0:04:58]} 2. g3 {[%clk 0:04:54.6]} 2...
d5 {[%clk 0:04:55.7]} 3. Bg2 {[%clk 0:04:53.9]} 3... c6 {[%clk 0:04:55.2]} 4. a3
{[%clk 0:04:49.6]} 4... Bf5 {[%clk 0:04:54]} 5. Nc3 {[%clk 0:04:47.3]} 5... Nbd7
{[%clk 0:04:52.8]} 6. Nf3 {[%clk 0:04:45.2]} 6... e6 {[%clk 0:04:51.8]} 7. Nh4
{[%clk 0:04:42.4]} 7... Bg6 {[%clk 0:04:47.8]} 8. Nxg6 {[%clk 0:04:41.7]} 8...
hxg6 {[%clk 0:04:47.7]} 9. Qd3 {[%clk 0:04:40.1]} 9... Rc8 {[%clk 0:04:44.2]}
10. e4 {[%clk 0:04:35]} 10... c5 {[%clk 0:04:37.6]} 11. exd5 {[%clk 0:04:27.8]}
11... exd5 {[%clk 0:04:25]} 12. Nxd5 {[%clk 0:04:23.4]} 12... cxd4 {[%clk
0:04:12.5]} 13. Qxd4 {[%clk 0:04:17.3]} 13... Bc5 {[%clk 0:04:07.9]} 14. Nxf6+
{[%clk 0:04:12]} 14... Nxf6 {[%clk 0:04:05.9]} 15. Qxd8+ {[%clk 0:04:10.2]}
15... Rxd8 {[%clk 0:04:05.8]} 16. c3 {[%clk 0:04:07.6]} 16... O-O {[%clk
0:04:04.6]} 17. O-O {[%clk 0:04:04.2]} 17... Rfe8 {[%clk 0:04:02.6]} 18. Bg5
{[%clk 0:04:00]} 18... Re2 {[%clk 0:04:00.4]} 19. Bxf6 {[%clk 0:03:57.5]} 19...
gxf6 {[%clk 0:04:00.3]} 20. Rab1 {[%clk 0:03:55.5]} 20... Rdd2 {[%clk
0:03:59.2]} 21. b4 {[%clk 0:03:44.9]} 21... Bxf2+ {[%clk 0:03:56]} 22. Kh1
{[%clk 0:03:43.5]} 22... f5 {[%clk 0:03:48.1]} 23. Bxb7 {[%clk 0:03:39.8]} 23...
Bb6 {[%clk 0:03:42.5]} 24. Bg2 {[%clk 0:03:12.2]} 24... Rxg2 {[%clk 0:03:40.4]}
25. Rg1 {[%clk 0:03:11.4]} 25... Rxh2# {[%clk 0:03:40.3]} 0-1

[Event "Live Chess"]
[Site "Chess.com"]
[Date "2023.05.20"]
[Round "-"]
[White "NAZRIZ1977"]
[Black "wadsy27"]
[Result "0-1"]
[WhiteElo "2119"]
[BlackElo "2590"]
[TimeControl "300"]
[EndTime "10:18:58 PDT"]
[Termination "wadsy27 won by resignation"]

1. c4 {[%clk 0:04:58.1]} 1... e5 {[%clk 0:04:58.7]} 2. g3 {[%clk 0:04:57.4]}
2... h5 {[%clk 0:04:56.6]} 3. h4 {[%clk 0:04:56]} 3... Nf6 {[%clk 0:04:55.3]} 4.
Bg2 {[%clk 0:04:55.3]} 4... Bc5 {[%clk 0:04:54.5]} 5. Nc3 {[%clk 0:04:54.2]}
5... d6 {[%clk 0:04:53.4]} 6. a3 {[%clk 0:04:53.3]} 6... a5 {[%clk 0:04:51.5]}
7. e3 {[%clk 0:04:52]} 7... Bg4 {[%clk 0:04:46.7]} 8. Nge2 {[%clk 0:04:49.7]}
8... Nc6 {[%clk 0:04:41.6]} 9. O-O {[%clk 0:04:47]} 9... Qe7 {[%clk 0:04:38.6]}
10. Nd5 {[%clk 0:04:41.5]} 10... Nxd5 {[%clk 0:04:36.3]} 11. cxd5 {[%clk
0:04:40.9]} 11... Nb8 {[%clk 0:04:33.1]} 12. Rb1 {[%clk 0:04:40.1]} 12... Nd7
{[%clk 0:04:29.9]} 13. b4 {[%clk 0:04:37.6]} 13... axb4 {[%clk 0:04:29.1]} 14.
axb4 {[%clk 0:04:37]} 14... Bb6 {[%clk 0:04:28.5]} 15. f3 {[%clk 0:04:31.1]}
15... Bf5 {[%clk 0:04:26.4]} 16. d3 {[%clk 0:04:26.7]} 16... g5 {[%clk
0:04:20.1]} 17. hxg5 {[%clk 0:04:04.2]} 17... Qxg5 {[%clk 0:04:20]} 18. d4
{[%clk 0:04:03.7]} 18... Bxb1 {[%clk 0:04:17.8]} 19. e4 {[%clk 0:04:01]} 19...
Qg6 {[%clk 0:04:16.2]} 0-1

[Event "Live Chess"]
[Site "Chess.com"]
[Date "2023.05.20"]
[Round "-"]
[White "CheckThis4"]
[Black "PLZ909"]
[Result "1-0"]
[WhiteElo "2546"]
[BlackElo "1514"]
[TimeControl "300"]
[EndTime "10:19:02 PDT"]
[Termination "CheckThis4 won by resignation"]

1. d4 {[%clk 0:04:56.7]} 1... d5 {[%clk 0:04:59.9]} 2. Bg5 {[%clk 0:04:54.8]}
2... Bf5 {[%clk 0:04:48.9]} 3. e3 {[%clk 0:04:46.7]} 3... Nd7 {[%clk 0:04:47.6]}
4. c4 {[%clk 0:04:40]} 4... c6 {[%clk 0:04:45.7]} 5. Nc3 {[%clk 0:04:38.3]} 5...
Ngf6 {[%clk 0:04:42.3]} 6. Nf3 {[%clk 0:04:30.7]} 6... h6 {[%clk 0:04:39.5]} 7.
Bxf6 {[%clk 0:04:25.8]} 7... Nxf6 {[%clk 0:04:37.5]} 8. cxd5 {[%clk 0:04:25]}
8... cxd5 {[%clk 0:04:35.9]} 9. Ne5 {[%clk 0:04:14.2]} 9... e6 {[%clk
0:04:28.9]} 10. Qa4+ {[%clk 0:04:05.4]} 10... Nd7 {[%clk 0:04:22.5]} 11. Bb5
{[%clk 0:04:02.7]} 1-0

[Event "Live Chess"]
[Site "Chess.com"]
[Date "2023.05.20"]
[Round "-"]
[White "f4nomore"]
[Black "LiamBellwood"]
[Result "0-1"]
[WhiteElo "1365"]
[BlackElo "2092"]
[TimeControl "300"]
[EndTime "10:19:03 PDT"]
[Termination "LiamBellwood won by resignation"]

1. d4 {[%clk 0:04:56]} 1... e6 {[%clk 0:04:59.9]} 2. Nf3 {[%clk 0:04:51.5]} 2...
f5 {[%clk 0:04:57.5]} 3. Ne5 {[%clk 0:04:43.2]} 3... Nf6 {[%clk 0:04:55]} 4. e3
{[%clk 0:04:40.2]} 4... d6 {[%clk 0:04:53.7]} 5. Nd3 {[%clk 0:04:31.9]} 5... Be7
{[%clk 0:04:52.3]} 6. Be2 {[%clk 0:04:30.5]} 6... O-O {[%clk 0:04:51.3]} 7. O-O
{[%clk 0:04:29.1]} 7... Nc6 {[%clk 0:04:50.9]} 8. a3 {[%clk 0:04:26.3]} 8... e5
{[%clk 0:04:50.3]} 9. dxe5 {[%clk 0:04:22.8]} 9... dxe5 {[%clk 0:04:50.2]} 10.
Nc3 {[%clk 0:04:16.8]} 10... Be6 {[%clk 0:04:47.4]} 11. Bf3 {[%clk 0:04:02.3]}
11... e4 {[%clk 0:04:45.8]} 12. Nb4 {[%clk 0:03:53.8]} 12... Nxb4 {[%clk
0:04:41]} 13. axb4 {[%clk 0:03:50.1]} 13... exf3 {[%clk 0:04:40.3]} 14. Qxf3
{[%clk 0:03:47.6]} 14... Bxb4 {[%clk 0:04:31]} 15. Qxb7 {[%clk 0:03:40.8]} 15...
Bxc3 {[%clk 0:04:30.4]} 16. bxc3 {[%clk 0:03:37.5]} 16... Bd5 {[%clk 0:04:30.3]}
17. Qb5 {[%clk 0:03:24.5]} 17... c6 {[%clk 0:04:24.5]} 18. Qb7 {[%clk
0:03:14.9]} 18... Ne4 {[%clk 0:04:06]} 19. Rxa7 {[%clk 0:03:04.5]} 19... Rxa7
{[%clk 0:04:05]} 20. Qxa7 {[%clk 0:03:02.1]} 20... Nxc3 {[%clk 0:04:03.3]} 21.
Bb2 {[%clk 0:02:52.7]} 21... Qg5 {[%clk 0:03:59.2]} 22. f3 {[%clk 0:02:44.5]}
22... Qxe3+ {[%clk 0:03:57.8]} 23. Kh1 {[%clk 0:02:42.3]} 23... Qxa7 {[%clk
0:03:54.6]} 24. Bxc3 {[%clk 0:02:36]} 24... Re8 {[%clk 0:03:49.4]} 0-1

[Event "Live Chess"]
[Site "Chess.com"]
[Date "2023.05.20"]
[Round "-"]
[White "Ian-Morley"]
[Black "KeithArkell"]
[Result "0-1"]
[WhiteElo "1034"]
[BlackElo "2611"]
[TimeControl "300"]
[EndTime "10:19:08 PDT"]
[Termination "KeithArkell won by resignation"]

1. d4 {[%clk 0:04:55.7]} 1... e6 {[%clk 0:04:58.8]} 2. Bf4 {[%clk 0:04:52.4]}
2... Nf6 {[%clk 0:04:57]} 3. Nf3 {[%clk 0:04:51]} 3... c5 {[%clk 0:04:56.1]} 4.
e3 {[%clk 0:04:50.2]} 4... cxd4 {[%clk 0:04:55.4]} 5. exd4 {[%clk 0:04:48.3]}
5... b6 {[%clk 0:04:54.6]} 6. c3 {[%clk 0:04:37.3]} 6... Be7 {[%clk 0:04:52.7]}
7. Be2 {[%clk 0:04:34.7]} 7... O-O {[%clk 0:04:51]} 8. Nbd2 {[%clk 0:04:33.7]}
8... Ba6 {[%clk 0:04:49.7]} 9. Bxa6 {[%clk 0:04:18.2]} 9... Nxa6 {[%clk
0:04:48.5]} 10. b4 {[%clk 0:03:41.2]} 10... Nc7 {[%clk 0:04:46.9]} 11. a3 {[%clk
0:03:38.8]} 11... b5 {[%clk 0:04:44.6]} 12. O-O {[%clk 0:03:25.2]} 12... Ncd5
{[%clk 0:04:43.7]} 13. Be5 {[%clk 0:03:18.2]} 13... Nxc3 {[%clk 0:04:42.4]} 14.
Qc2 {[%clk 0:03:17.4]} 14... Ncd5 {[%clk 0:04:41.4]} 15. Bxf6 {[%clk 0:03:14.7]}
15... Bxf6 {[%clk 0:04:39.4]} 16. Ne5 {[%clk 0:03:13.8]} 16... Rc8 {[%clk
0:04:37.3]} 17. Qd3 {[%clk 0:03:07.6]} 17... d6 {[%clk 0:04:36.3]} 18. Nef3
{[%clk 0:02:58]} 18... a6 {[%clk 0:04:34]} 19. Rfc1 {[%clk 0:02:54.4]} 19... Qd7
{[%clk 0:04:32.5]} 20. Ne4 {[%clk 0:02:36.4]} 20... h6 {[%clk 0:04:26.9]} 21.
Nxf6+ {[%clk 0:02:35]} 21... Nxf6 {[%clk 0:04:25.9]} 22. Qd2 {[%clk 0:02:30.8]}
22... Qb7 {[%clk 0:04:20.9]} 23. Rxc8 {[%clk 0:02:25.8]} 23... Rxc8 {[%clk
0:04:20.8]} 24. Rc1 {[%clk 0:02:25]} 24... Rc7 {[%clk 0:04:16]} 25. Rxc7 {[%clk
0:02:19.5]} 25... Qxc7 {[%clk 0:04:14.8]} 26. Ne1 {[%clk 0:02:18.7]} 26... Qc4
{[%clk 0:04:12.8]} 27. f3 {[%clk 0:01:51.8]} 27... Nd5 {[%clk 0:04:11.1]} 28.
Qd3 {[%clk 0:01:41]} 28... Qxd3 {[%clk 0:04:06.3]} 29. Nxd3 {[%clk 0:01:40]}
29... Nc3 {[%clk 0:04:05.5]} 30. Kf2 {[%clk 0:01:33.8]} 30... Nb1 {[%clk
0:04:02.6]} 31. Ke3 {[%clk 0:01:26.7]} 31... Nxa3 {[%clk 0:04:01.5]} 32. g4
{[%clk 0:01:24.9]} 32... Nc2+ {[%clk 0:04:00.6]} 33. Kd2 {[%clk 0:01:23.3]}
33... Nxd4 {[%clk 0:03:59.1]} 34. f4 {[%clk 0:01:17.6]} 34... Kf8 {[%clk
0:03:57.1]} 35. h4 {[%clk 0:01:13.9]} 35... Ke7 {[%clk 0:03:55.7]} 36. g5 {[%clk
0:01:10]} 36... hxg5 {[%clk 0:03:54.4]} 37. fxg5 {[%clk 0:01:09.3]} 37... g6
{[%clk 0:03:53.7]} 38. Nf4 {[%clk 0:01:06.1]} 38... Nf3+ {[%clk 0:03:52]} 0-1

[Event "Live Chess"]
[Site "Chess.com"]
[Date "2023.05.20"]
[Round "-"]
[White "ACx04"]
[Black "Davidagye"]
[Result "0-1"]
[WhiteElo "433"]
[BlackElo "1657"]
[TimeControl "300"]
[EndTime "10:19:16 PDT"]
[Termination "Davidagye won by checkmate"]

1. e4 {[%clk 0:04:58.9]} 1... Nf6 {[%clk 0:04:57.2]} 2. Nc3 {[%clk 0:04:57.1]}
2... d6 {[%clk 0:04:55.8]} 3. Nf3 {[%clk 0:04:56.1]} 3... Nbd7 {[%clk
0:04:54.5]} 4. Bc4 {[%clk 0:04:54.7]} 4... e5 {[%clk 0:04:53.9]} 5. Ng5 {[%clk
0:04:53.4]} 5... d5 {[%clk 0:04:50.6]} 6. exd5 {[%clk 0:04:52.4]} 6... Nb6
{[%clk 0:04:50]} 7. d6 {[%clk 0:04:51.2]} 7... Nxc4 {[%clk 0:04:48.7]} 8. d3
{[%clk 0:04:48.7]} 8... Nxd6 {[%clk 0:04:47.5]} 9. O-O {[%clk 0:04:46.3]} 9...
Be7 {[%clk 0:04:46.6]} 10. Nf3 {[%clk 0:04:42.5]} 10... Bg4 {[%clk 0:04:44.7]}
11. h3 {[%clk 0:04:40.4]} 11... Bh5 {[%clk 0:04:42.9]} 12. g4 {[%clk 0:04:39]}
12... Nxg4 {[%clk 0:04:42]} 13. hxg4 {[%clk 0:04:37.6]} 13... Bxg4 {[%clk
0:04:40.4]} 14. Nxe5 {[%clk 0:04:36.1]} 14... Bxd1 {[%clk 0:04:38.8]} 15. Rxd1
{[%clk 0:04:34.3]} 15... O-O {[%clk 0:04:37.5]} 16. Nd5 {[%clk 0:04:31.2]} 16...
Bf6 {[%clk 0:04:36]} 17. Nxf6+ {[%clk 0:04:29.9]} 17... Qxf6 {[%clk 0:04:34.5]}
18. Nd7 {[%clk 0:04:28.3]} 18... Qg6+ {[%clk 0:04:32.3]} 19. Kf1 {[%clk
0:04:22.5]} 19... Rfe8 {[%clk 0:04:30.6]} 20. Ne5 {[%clk 0:04:17.8]} 20... Rxe5
{[%clk 0:04:28.7]} 21. d4 {[%clk 0:04:16.7]} 21... Rf5 {[%clk 0:04:26.8]} 22.
Be3 {[%clk 0:04:15.4]} 22... Re8 {[%clk 0:04:24.5]} 23. Re1 {[%clk 0:04:13.4]}
23... Ne4 {[%clk 0:04:23.8]} 24. f3 {[%clk 0:04:11.4]} 24... Rxf3+ {[%clk
0:04:22.7]} 25. Ke2 {[%clk 0:04:09.5]} 25... Rxe3+ {[%clk 0:04:20.6]} 26. Kxe3
{[%clk 0:04:08.2]} 26... Ng3+ {[%clk 0:04:19.3]} 27. Kf2 {[%clk 0:04:03.1]}
27... Ne4+ {[%clk 0:04:17.6]} 28. Rxe4 {[%clk 0:04:01.4]} 28... Qxe4 {[%clk
0:04:14.9]} 29. Re1 {[%clk 0:04:00.1]} 29... Qxe1+ {[%clk 0:04:13.9]} 30. Kf3
{[%clk 0:03:58]} 30... Re3+ {[%clk 0:04:13.1]} 31. Kf4 {[%clk 0:03:56.7]} 31...
Qf2+ {[%clk 0:04:12.6]} 32. Kg4 {[%clk 0:03:53.3]} 32... Rg3+ {[%clk 0:04:12.5]}
33. Kh5 {[%clk 0:03:51.6]} 33... Qh2# {[%clk 0:04:12.4]} 0-1

[Event "Live Chess"]
[Site "Chess.com"]
[Date "2023.05.20"]
[Round "-"]
[White "OceanFloater"]
[Black "nigelst"]
[Result "0-1"]
[WhiteElo "986"]
[BlackElo "1842"]
[TimeControl "300"]
[EndTime "10:19:21 PDT"]
[Termination "nigelst won by checkmate"]

1. e4 {[%clk 0:04:56.4]} 1... c6 {[%clk 0:04:58.9]} 2. Nf3 {[%clk 0:04:54.7]}
2... d5 {[%clk 0:04:58.1]} 3. exd5 {[%clk 0:04:53.5]} 3... cxd5 {[%clk
0:04:57.3]} 4. d4 {[%clk 0:04:53.1]} 4... Nf6 {[%clk 0:04:56.7]} 5. Nc3 {[%clk
0:04:51.8]} 5... Nc6 {[%clk 0:04:56.2]} 6. Bb5 {[%clk 0:04:50.1]} 6... Bg4
{[%clk 0:04:55.4]} 7. h3 {[%clk 0:04:48.6]} 7... Bxf3 {[%clk 0:04:53.8]} 8. Qxf3
{[%clk 0:04:46.6]} 8... e6 {[%clk 0:04:53.5]} 9. O-O {[%clk 0:04:44.4]} 9... Be7
{[%clk 0:04:51.9]} 10. Bf4 {[%clk 0:04:42.3]} 10... O-O {[%clk 0:04:50.8]} 11.
Bxc6 {[%clk 0:04:39]} 11... bxc6 {[%clk 0:04:49.5]} 12. Be5 {[%clk 0:04:37.4]}
12... Nd7 {[%clk 0:04:45.3]} 13. Qg3 {[%clk 0:04:32.9]} 13... Nxe5 {[%clk
0:04:44.1]} 14. Qxe5 {[%clk 0:04:28.4]} 14... Bf6 {[%clk 0:04:42.6]} 15. Qf4
{[%clk 0:04:25.5]} 15... Qb8 {[%clk 0:04:38.7]} 16. Qe3 {[%clk 0:04:17.6]} 16...
Qxb2 {[%clk 0:04:32.7]} 17. Rac1 {[%clk 0:04:04.5]} 17... Qb6 {[%clk 0:04:29.1]}
18. Rfd1 {[%clk 0:04:00.9]} 18... c5 {[%clk 0:04:23]} 19. dxc5 {[%clk
0:03:57.9]} 19... Qa5 {[%clk 0:04:16.1]} 20. Ne2 {[%clk 0:03:45.5]} 20... Qxa2
{[%clk 0:04:08.5]} 21. c6 {[%clk 0:03:42.2]} 21... Qc4 {[%clk 0:04:04.1]} 22.
Nd4 {[%clk 0:03:38.4]} 22... Bxd4 {[%clk 0:04:01.9]} 23. Rxd4 {[%clk 0:03:37.3]}
23... Qxc6 {[%clk 0:04:00.7]} 24. c4 {[%clk 0:03:34.2]} 24... Rac8 {[%clk
0:03:53.2]} 25. c5 {[%clk 0:03:27.2]} 25... Qb5 {[%clk 0:03:43.6]} 26. Qa3
{[%clk 0:03:19.4]} 26... a5 {[%clk 0:03:37.9]} 27. Ra4 {[%clk 0:03:13]} 27...
Qe2 {[%clk 0:03:15.6]} 28. c6 {[%clk 0:03:03.1]} 28... Qe5 {[%clk 0:02:48.6]}
29. Rxa5 {[%clk 0:02:58.3]} 29... Rc7 {[%clk 0:02:46.6]} 30. Ra8 {[%clk
0:02:44.5]} 30... g6 {[%clk 0:02:40.8]} 31. Rxf8+ {[%clk 0:02:32.2]} 31... Kg7
{[%clk 0:02:37.8]} 32. Ra8 {[%clk 0:02:15.1]} 32... Qf4 {[%clk 0:02:08.5]} 33.
Ra7 {[%clk 0:02:01.7]} 33... Rxa7 {[%clk 0:02:01.8]} 34. Qc3+ {[%clk 0:01:49.5]}
34... d4 {[%clk 0:01:46.9]} 35. c7 {[%clk 0:01:34]} 35... dxc3 {[%clk
0:01:40.9]} 36. c8=Q {[%clk 0:01:32]} 36... Qxc1+ {[%clk 0:01:39.2]} 37. Kh2
{[%clk 0:01:29.7]} 37... Qf4+ {[%clk 0:01:33.5]} 38. g3 {[%clk 0:01:27.8]} 38...
Qxf2+ {[%clk 0:01:31.3]} 39. Kh1 {[%clk 0:01:26.2]} 39... Ra1# {[%clk
0:01:28.5]} 0-1

[Event "Live Chess"]
[Site "Chess.com"]
[Date "2023.05.20"]
[Round "-"]
[White "lHolyDiverl"]
[Black "FlyingChessKestrel13"]
[Result "0-1"]
[WhiteElo "562"]
[BlackElo "2121"]
[TimeControl "300"]
[EndTime "10:19:25 PDT"]
[Termination "FlyingChessKestrel13 won by resignation"]

1. d4 {[%clk 0:04:54.4]} 1... Nf6 {[%clk 0:04:59.3]} 2. Nc3 {[%clk 0:04:53.3]}
2... c5 {[%clk 0:04:58.6]} 3. Bf4 {[%clk 0:04:34.7]} 3... cxd4 {[%clk
0:04:37.7]} 4. Nb5 {[%clk 0:04:27]} 4... d6 {[%clk 0:04:36.3]} 5. Nf3 {[%clk
0:04:18.1]} 5... a6 {[%clk 0:04:33.3]} 6. Nbxd4 {[%clk 0:04:12.3]} 6... e5
{[%clk 0:04:30.9]} 7. Bg5 {[%clk 0:03:42.8]} 7... exd4 {[%clk 0:04:29.3]} 8.
Nxd4 {[%clk 0:03:39.7]} 8... Nc6 {[%clk 0:04:28.5]} 9. e3 {[%clk 0:03:32.3]}
9... Be7 {[%clk 0:04:26.8]} 10. Be2 {[%clk 0:03:14.8]} 10... O-O {[%clk
0:04:18.4]} 11. Bxf6 {[%clk 0:02:43.6]} 11... Bxf6 {[%clk 0:04:16.8]} 12. Nf5
{[%clk 0:02:39.1]} 12... Bxf5 {[%clk 0:04:14.5]} 0-1

[Event "Live Chess"]
[Site "Chess.com"]
[Date "2023.05.20"]
[Round "-"]
[White "DenDenTie"]
[Black "Leonid_Starozhilov"]
[Result "0-1"]
[WhiteElo "1176"]
[BlackElo "2657"]
[TimeControl "300"]
[EndTime "10:19:28 PDT"]
[Termination "Leonid_Starozhilov won on time"]

1. e4 {[%clk 0:04:57.7]} 1... e5 {[%clk 0:04:57.9]} 2. Nf3 {[%clk 0:04:54.5]}
2... Nc6 {[%clk 0:04:57.8]} 3. Nc3 {[%clk 0:04:52.9]} 3... Nf6 {[%clk
0:04:57.2]} 4. Bb5 {[%clk 0:04:50.5]} 4... Nd4 {[%clk 0:04:56.4]} 5. Nxd4 {[%clk
0:04:48.6]} 5... exd4 {[%clk 0:04:55.1]} 6. Nd5 {[%clk 0:04:47.4]} 6... Nxd5
{[%clk 0:04:54]} 7. exd5 {[%clk 0:04:46.1]} 7... Qg5 {[%clk 0:04:52.8]} 8. Qf3
{[%clk 0:04:40.5]} 8... Bd6 {[%clk 0:04:37.3]} 9. d3 {[%clk 0:04:37.9]} 9...
Qe7+ {[%clk 0:04:35.7]} 10. Kd1 {[%clk 0:04:31.3]} 10... O-O {[%clk 0:04:31.3]}
11. Re1 {[%clk 0:04:28.7]} 11... Qh4 {[%clk 0:04:28.7]} 12. h3 {[%clk
0:04:17.3]} 12... a6 {[%clk 0:04:22]} 13. Bc4 {[%clk 0:04:13.7]} 13... b5 {[%clk
0:04:20.2]} 14. Bb3 {[%clk 0:04:12.2]} 14... Bb7 {[%clk 0:04:18]} 15. Bd2 {[%clk
0:03:58.9]} 15... Rae8 {[%clk 0:04:14.3]} 16. Rb1 {[%clk 0:03:51.6]} 16... Rxe1+
{[%clk 0:04:10.8]} 17. Kxe1 {[%clk 0:03:50.1]} 17... Re8+ {[%clk 0:04:10]} 18.
Kd1 {[%clk 0:03:49]} 18... h6 {[%clk 0:04:03.5]} 19. g3 {[%clk 0:03:43.5]} 19...
Qxh3 {[%clk 0:04:00.3]} 20. c3 {[%clk 0:02:58.8]} 20... a5 {[%clk 0:03:13.1]}
0-1

[Event "Live Chess"]
[Site "Chess.com"]
[Date "2023.05.20"]
[Round "-"]
[White "MaximKhimchenko"]
[Black "ms_lilley"]
[Result "0-1"]
[WhiteElo "1350"]
[BlackElo "581"]
[TimeControl "300"]
[EndTime "10:19:31 PDT"]
[Termination "ms_lilley won by resignation"]

1. e4 {[%clk 0:04:45.2]} 1... e6 {[%clk 0:04:58.8]} 2. Nf3 {[%clk 0:04:45.1]}
2... h6 {[%clk 0:04:56]} 3. d4 {[%clk 0:03:43]} 3... d5 {[%clk 0:04:52.5]} 4.
exd5 {[%clk 0:03:42.9]} 4... exd5 {[%clk 0:04:51]} 5. c4 {[%clk 0:03:27.2]} 5...
c6 {[%clk 0:04:49.3]} 6. cxd5 {[%clk 0:03:27.1]} 6... cxd5 {[%clk 0:04:48]} 7.
Nc3 {[%clk 0:03:27]} 7... Nf6 {[%clk 0:04:42.6]} 8. Be2 {[%clk 0:03:25]} 8...
Nc6 {[%clk 0:04:37.5]} 9. O-O {[%clk 0:03:24.9]} 9... Bd6 {[%clk 0:04:34.5]} 10.
Re1 {[%clk 0:03:10.3]} 10... O-O {[%clk 0:04:31.4]} 11. Bd3 {[%clk 0:03:04.7]}
11... Qb6 {[%clk 0:04:22.8]} 12. Be3 {[%clk 0:02:59]} 12... Bg4 {[%clk
0:04:12.4]} 13. h3 {[%clk 0:02:45.6]} 13... Bxf3 {[%clk 0:04:10.7]} 14. Qxf3
{[%clk 0:02:45.5]} 14... Nxd4 {[%clk 0:04:01.9]} 15. Bxd4 {[%clk 0:02:44.3]}
15... Qxd4 {[%clk 0:03:59.5]} 16. Rad1 {[%clk 0:02:43.2]} 16... Qb4 {[%clk
0:03:50.9]} 17. Nxd5 {[%clk 0:01:41.6]} 17... Nxd5 {[%clk 0:03:45.2]} 18. Qxd5
{[%clk 0:01:41.5]} 18... Rae8 {[%clk 0:03:28.4]} 19. Rxe8 {[%clk 0:01:33.4]}
19... Rxe8 {[%clk 0:03:26.4]} 20. Bc4 {[%clk 0:01:32.2]} 20... Kh7 {[%clk
0:03:17]} 21. Qxf7 {[%clk 0:01:26.3]} 21... Re1+ {[%clk 0:03:14.9]} 22. Rxe1
{[%clk 0:01:25.2]} 22... Qxe1+ {[%clk 0:03:12.7]} 23. Bf1 {[%clk 0:01:22.9]}
23... Qe5 {[%clk 0:03:04.5]} 24. Bd3+ {[%clk 0:01:11.2]} 24... Kh8 {[%clk
0:02:48.4]} 25. Qg6 {[%clk 0:01:06.1]} 25... Kg8 {[%clk 0:02:36.4]} 26. Bc4+
{[%clk 0:01:02.6]} 26... Kh8 {[%clk 0:02:30.4]} 27. Qe6 {[%clk 0:00:58.6]} 27...
Qxe6 {[%clk 0:02:27.9]} 28. Bxe6 {[%clk 0:00:58.5]} 28... Kh7 {[%clk 0:02:24.3]}
29. Bc8 {[%clk 0:00:56.4]} 29... b5 {[%clk 0:02:21.9]} 30. Bb7 {[%clk
0:00:56.3]} 30... a5 {[%clk 0:02:19.8]} 31. Ba6 {[%clk 0:00:55.5]} 31... b4
{[%clk 0:02:18.3]} 32. b3 {[%clk 0:00:54.5]} 32... Kg6 {[%clk 0:02:15.6]} 33.
Bd3+ {[%clk 0:00:53.7]} 33... Kf6 {[%clk 0:02:13.2]} 34. Kf1 {[%clk 0:00:53.6]}
34... Ke5 {[%clk 0:02:11.1]} 35. Ke2 {[%clk 0:00:53.5]} 35... h5 {[%clk
0:02:07.5]} 36. Ke3 {[%clk 0:00:51.3]} 36... h4 {[%clk 0:02:05.8]} 37. Bc4
{[%clk 0:00:45.5]} 37... Bc5+ {[%clk 0:02:04.2]} 38. Kd3 {[%clk 0:00:44.3]}
38... Bxf2 {[%clk 0:02:02.3]} 39. Ke2 {[%clk 0:00:42.4]} 39... Bc5 {[%clk
0:01:59.5]} 40. Kf3 {[%clk 0:00:28.3]} 40... g5 {[%clk 0:01:57.3]} 41. Kg4
{[%clk 0:00:27.3]} 41... Be7 {[%clk 0:01:55.3]} 42. Bd3 {[%clk 0:00:24.7]} 42...
Kd4 {[%clk 0:01:54]} 43. Bb5 {[%clk 0:00:19.2]} 43... Kc3 {[%clk 0:01:52.7]} 44.
Kf5 {[%clk 0:00:13.5]} 44... Kb2 {[%clk 0:01:51.5]} 45. Ke4 {[%clk 0:00:13.4]}
45... Kxa2 {[%clk 0:01:50.2]} 46. Kd3 {[%clk 0:00:13.3]} 46... Kxb3 {[%clk
0:01:48.8]} 47. Bc4+ {[%clk 0:00:11.8]} 47... Kb2 {[%clk 0:01:44.9]} 48. Bb3
{[%clk 0:00:09.8]} 48... Kc1 {[%clk 0:01:43]} 49. Bc2 {[%clk 0:00:09.7]} 0-1

[Event "Live Chess"]
[Site "Chess.com"]
[Date "2023.05.20"]
[Round "-"]
[White "Outspanner"]
[Black "viktorskliarov"]
[Result "0-1"]
[WhiteElo "1554"]
[BlackElo "2648"]
[TimeControl "300"]
[EndTime "10:19:35 PDT"]
[Termination "viktorskliarov won by resignation"]

1. Nf3 {[%clk 0:04:52.1]} 1... g6 {[%clk 0:04:54.1]} 2. g3 {[%clk 0:04:46]} 2...
Bg7 {[%clk 0:04:52.7]} 3. Bg2 {[%clk 0:04:45.9]} 3... c5 {[%clk 0:04:52.2]} 4.
c4 {[%clk 0:04:32.2]} 4... Nc6 {[%clk 0:04:50.9]} 5. O-O {[%clk 0:04:31.4]} 5...
Nf6 {[%clk 0:04:49.2]} 6. Nc3 {[%clk 0:04:24.6]} 6... O-O {[%clk 0:04:46.7]} 7.
b3 {[%clk 0:04:16.2]} 7... d5 {[%clk 0:04:39.8]} 8. e3 {[%clk 0:04:10.2]} 8...
dxc4 {[%clk 0:04:34]} 9. bxc4 {[%clk 0:04:08.8]} 9... Ne4 {[%clk 0:04:32.3]} 10.
Bb2 {[%clk 0:03:55.2]} 10... Nxc3 {[%clk 0:04:28]} 11. Bxc3 {[%clk 0:03:52.7]}
11... Bxc3 {[%clk 0:04:26.4]} 12. dxc3 {[%clk 0:03:52.6]} 12... Qxd1 {[%clk
0:04:08.8]} 13. Rfxd1 {[%clk 0:03:52.5]} 13... Be6 {[%clk 0:04:08.2]} 14. Rab1
{[%clk 0:03:25.2]} 14... Rab8 {[%clk 0:03:51.6]} 15. a3 {[%clk 0:03:12.8]} 15...
h6 {[%clk 0:03:35]} 16. Rb5 {[%clk 0:02:55.1]} 16... b6 {[%clk 0:03:31.6]} 17.
Rbb1 {[%clk 0:02:40.2]} 17... Na5 {[%clk 0:03:18.2]} 18. Nd2 {[%clk 0:02:31.8]}
18... Rfd8 {[%clk 0:03:11.3]} 19. Bf1 {[%clk 0:02:10.7]} 19... Rd7 {[%clk
0:03:09.8]} 20. Nf3 {[%clk 0:01:57.6]} 20... Rbd8 {[%clk 0:03:08.2]} 21. Be2
{[%clk 0:01:48.9]} 21... Rxd1+ {[%clk 0:03:01]} 22. Rxd1 {[%clk 0:01:47.3]}
22... Rxd1+ {[%clk 0:02:59.8]} 23. Bxd1 {[%clk 0:01:47.2]} 23... Nxc4 {[%clk
0:02:58.3]} 24. Bb3 {[%clk 0:01:40.6]} 24... Nxa3 {[%clk 0:02:55.2]} 25. Bxe6
{[%clk 0:01:36.1]} 25... fxe6 {[%clk 0:02:55.1]} 26. Ne5 {[%clk 0:01:31.8]}
26... Kg7 {[%clk 0:02:48]} 27. Nc6 {[%clk 0:01:26]} 27... a5 {[%clk 0:02:46.3]}
28. Kf1 {[%clk 0:01:22.2]} 28... Nc4 {[%clk 0:02:41.4]} 29. Ke2 {[%clk 0:01:17]}
29... a4 {[%clk 0:02:39.6]} 30. Kd3 {[%clk 0:01:14.5]} 30... a3 {[%clk
0:02:32.9]} 31. Kxc4 {[%clk 0:01:03.5]} 31... a2 {[%clk 0:02:31.8]} 32. Kb5
{[%clk 0:01:03.4]} 32... a1=Q {[%clk 0:02:30.5]} 33. Kxb6 {[%clk 0:01:03.1]}
33... Qxc3 {[%clk 0:02:27.4]} 0-1